lending/lending_fUSD_20240509
["ID","MTS","AMOUNT","RATE_DAILY","PERIOD"]
[326730836,1715287832734,-22.04848759,0.0001788,2]
[326730837,1715287832744,-377.95151241,0.0001788,2]
[326730838,1715287832755,-308.14008547,0.0001788,2]
[326730839,1715287832767,-13440.13964338,0.0001788,2]
[326730840,1715287832779,-3444.08213664,0.0001788,2]
[326730841,1715287832788,-1014.71959,0.00018,2]
[326730842,1715287832798,-225.58,0.00018198,2]
[326730843,1715287832808,-262.51,0.000182,2]
[326730844,1715287832817,-287.57047565,0.00018211,2]
[326730845,1715287832827,-18967.7242218,0.0001826,2]
[326730846,1715287832838,-321.31755,0.0001826,2]
[326730847,1715287832852,-4046.74261136,0.0001826,2]
[326730848,1715287832867,-544.21561684,0.0001826,2]
[326730849,1715287832876,-250.0,0.00018298,2]
[326730850,1715287832886,-200.0,0.00018298,2]
[326730851,1715287832896,-614.77,0.00018307,2]
[326730852,1715287832905,-1343.78438316,0.00018499,2]
[326730853,1715287833004,-450.037073,0.00018499,2]
[326730854,1715287839335,-646.28503229,0.00018499,2]
[326730856,1715287839349,-1353.15351155,0.00018499,2]
[326730857,1715287839360,-185.82,0.00018511,2]
[326730859,1715287839370,-7796.3,0.00018553,2]
[326730861,1715287839379,-174.97,0.00019046,2]
[326730862,1715287839389,-150.62,0.00019178,2]
[326730863,1715287839399,-800.0,0.00019178,2]
[326730864,1715287839409,-168.71,0.00019178,2]
[326730865,1715287839419,-3753.15464097,0.00019254,2]
[326730866,1715287839428,-17570.3133779,0.00019345,2]
[326730867,1715287839438,-800.0,0.00019671,2]
[326730868,1715287839448,-500.0,0.00019903,2]
[326730869,1715287839458,-2646.08894545,0.0002,2]
[326730870,1715287839468,-262.51,0.00020222,2]
[326730871,1715287839478,-185.82,0.00020825,2]
[326730872,1715287839488,-716.58965222,0.00021,2]
[326730873,1715287839498,-616.82,0.00021068,2]
[326730874,1715287839508,-3793.26,0.00021239,2]
[326730875,1715287839518,-800.0,0.0002126,2]
[326730876,1715287839528,-169.53,0.00021429,2]
[326730877,1715287839537,-591.22,0.00021472,2]
[326730878,1715287839548,-669.0129911,0.00021482,2]
[326730879,1715287839558,-150.0,0.00021484,2]
[326730880,1715287839567,-591.22,0.00021531,2]
[326730881,1715287839577,-1137.59627636,0.00021575,2]
[326730882,1715287839587,-591.22,0.0002159,2]
[326730883,1715287839597,-591.22,0.00021649,2]
[326730884,1715287839607,-591.22,0.00021708,2]
[326730885,1715287839618,-185.97,0.00021762,2]
[326730886,1715287839628,-591.22,0.00021767,2]
[326730887,1715287839638,-591.22,0.00021825,2]
[326730888,1715287839648,-3753.15464097,0.00021883,2]
[326730889,1715287839659,-591.22,0.00021884,2]
[326730890,1715287839669,-6751.18378893,0.000219,2]
[326730891,1715287839679,-250.0,0.00021918,2]
[326730892,1715287839690,-2000.0,0.00021918,2]
[326730893,1715287839699,-591.22,0.00021943,2]
[326730894,1715287839709,-785.91687423,0.00022,2]
[326730895,1715287839719,-265.97903707,0.00022,2]
[326730896,1715287839728,-265.97903707,0.00022,2]
[326730897,1715287839738,-265.97903707,0.00022,2]
[326730898,1715287839747,-265.97903707,0.00022,2]
[326730899,1715287839757,-265.97903707,0.00022,2]
[326730900,1715287839766,-265.97903707,0.00022,2]
[326730901,1715287839776,-265.97903707,0.00022,2]
[326730903,1715287839785,-265.97903707,0.00022,2]
[326730904,1715287839795,-265.97903707,0.00022,2]
[326730905,1715287839805,-265.97903707,0.00022,2]
[326730906,1715287839814,-265.97903707,0.00022,2]
[326730907,1715287839824,-265.97903707,0.00022,2]
[326730908,1715287839833,-265.97903707,0.00022,2]
[326730909,1715287839843,-265.97903707,0.00022,2]
[326730910,1715287839852,-265.97903707,0.00022,2]
[326730911,1715287839863,-265.97903707,0.00022,2]
[326730912,1715287839872,-265.97903707,0.00022,2]
[326730913,1715287839882,-265.97903707,0.00022,2]
[326730914,1715287839891,-265.97903707,0.00022,2]
[326730915,1715287839901,-265.97903707,0.00022,2]
[326730916,1715287839911,-265.97903707,0.00022,2]
[326730917,1715287839921,-265.97903707,0.00022,2]
[326730918,1715287839930,-265.97903707,0.00022,2]
[326730919,1715287839940,-265.97903707,0.00022,2]
[326730920,1715287839949,-265.97903707,0.00022,2]
[326730921,1715287839959,-265.97903707,0.00022,2]
[326730922,1715287839968,-265.97903707,0.00022,2]
[326730923,1715287839978,-265.97903707,0.00022,2]
[326730924,1715287839988,-265.97903707,0.00022,2]
[326730925,1715287839998,-265.97903707,0.00022,2]
[326730926,1715287840008,-265.97903707,0.00022,2]
[326730927,1715287840017,-265.97903707,0.00022,2]
[326730928,1715287840027,-265.97903707,0.00022,2]
[326730929,1715287840041,-265.97903707,0.00022,2]
[326730930,1715287840051,-265.97903707,0.00022,2]
[326730931,1715287840061,-265.97903707,0.00022,2]
[326730932,1715287840071,-265.97903707,0.00022,2]
[326730933,1715287840080,-265.97903707,0.00022,2]
[326730934,1715287840090,-265.97903707,0.00022,2]
[326730935,1715287840099,-265.97903707,0.00022,2]
[326730936,1715287840110,-265.97903707,0.00022,2]
[326730937,1715287840121,-265.97903707,0.00022,2]
[326730938,1715287840131,-265.97903707,0.00022,2]
[326730939,1715287840141,-265.97903707,0.00022,2]
[326730940,1715287840151,-265.97903707,0.00022,2]
[326730941,1715287840162,-265.97903707,0.00022,2]
[326730942,1715287840171,-265.97903707,0.00022,2]
[326730943,1715287840181,-265.97903707,0.00022,2]
[326730944,1715287840191,-265.97903707,0.00022,2]
[326730945,1715287840200,-265.97903707,0.00022,2]
[326730946,1715287840210,-591.22,0.00022002,2]
[326730947,1715287840220,-591.22,0.00022061,2]
[326730948,1715287840229,-591.22,0.0002212,2]
[326730949,1715287840239,-591.22,0.00022179,2]
[326730950,1715287840250,-6683.79351995,0.0002223,2]
[326730951,1715287840261,-591.22,0.00022238,2]
[326730952,1715287840270,-262.51,0.00022245,2]
[326730953,1715287840280,-591.22,0.00022296,2]
[326730954,1715287840290,-591.22,0.00022355,2]
[326730955,1715287840299,-591.22,0.00022414,2]
[326730957,1715287840309,-591.22,0.00022473,2]
[326730959,1715287840319,-294.03238734,0.00022491,2]
[326730960,1715287840328,-591.22,0.00022532,2]
[326730961,1715287840337,-17570.3133779,0.00022568,2]
[326730962,1715287840349,-591.22,0.00022591,2]
[326730963,1715287840360,-287.57047565,0.00022949,2]
[326730964,1715287840371,-1014.71958,0.00023,2]
[326730965,1715287840380,-150.0,0.00023033,5]
[326730966,1715287840390,-185.82,0.00023139,2]
[326730967,1715287840400,-2516.0,0.000239,3]
[326730968,1715287840410,-3793.26,0.00023978,2]
[326730969,1715287840420,-262.51,0.00024267,2]
[326730970,1715287840429,-294.03238731,0.00024344,2]
[326730971,1715287840439,-3753.15464097,0.00024512,2]
[326730972,1715287840448,-150.0,0.00024757,7]
[326730973,1715287840457,-3367.73840261,0.00025,30]
[326730974,1715287840467,-2438.75626202,0.00025,2]
[326730975,1715287840476,-185.82,0.00025452,2]
[326730976,1715287840487,-1137.59627636,0.00025514,2]
[326730977,1715287840497,-17570.3133779,0.00025791,2]
[326730978,1715287840507,-294.03238731,0.00026198,2]
[326730979,1715287840517,-150.0,0.00026482,7]
[326730980,1715287840528,-169.53,0.00026786,120]
[326730981,1715287840538,-5839.74170923,0.00027,2]
[326730982,1715287840547,-1087.746256,0.00027,2]
[326730983,1715287840558,-3753.15464097,0.00027141,2]
[326730984,1715287840568,-150.0,0.00027397,2]
[326730985,1715287840578,-287.57047565,0.00027687,2]
[326730986,1715287840588,-185.82,0.00027766,2]
[326730987,1715287840598,-1014.71959,0.00028,2]
[326730988,1715287840608,-294.03238731,0.00028051,2]
[326730989,1715287840619,-150.0,0.00028206,7]
[326730990,1715287840629,-174.97,0.00028569,120]
[326730991,1715287840639,-2263.184006,0.000288,2]
[326730992,1715287840648,-719.39,0.00029,2]
[326730993,1715287840658,-17570.3133779,0.00029013,2]
[326730994,1715287840668,-1500.0,0.000293,2]
[326730995,1715287840678,-1137.59627636,0.00029452,2]
[326730996,1715287840687,-200.0,0.000296,10]
[326730997,1715287840696,-500.0,0.000297,10]
[326730998,1715287840707,-3753.15464097,0.00029769,2]
[326730999,1715287840716,-700.0,0.000298,10]
[326731000,1715287840726,-1500.0,0.000298,2]
[326731001,1715287840735,-1000.0,0.000299,10]
[326731002,1715287840745,-153.16368911,0.00029904,2]
[326731003,1715287840754,-294.03238731,0.00029904,2]
[326731004,1715287840763,-1151.17382054,0.00029904,2]
[326731005,1715287840773,-5150.65811635,0.00029904,2]
[326731006,1715287840782,-174.42603969,0.00029904,2]
[326731007,1715287840791,-3274.2561328,0.00029904,2]
[326731008,1715287840800,-171.93194922,0.00029967,2]
[326731009,1715287840810,-151.48,0.00029994,2]
[326731010,1715287840820,-151.48,0.00029994,2]
[326731011,1715287840830,-151.48,0.00029994,2]
[326731012,1715287840846,-5681.44871975,0.0003,2]
[326731013,1715287840858,-19366.7269474,0.0003,4]
[326731014,1715287840867,-2170.82789106,0.0003,10]
[326731015,1715287840877,-1147.08444075,0.0003,5]
[326731016,1715287840886,-375.69214849,0.0003,2]
[326731017,1715287840897,-1524.39677787,0.0003,2]
[326731018,1715287840908,-347.77567057,0.0003,2]
[326731019,1715287840918,-1704.69908196,0.0003,2]
[326731020,1715287840928,-574.06584723,0.0003,7]
[326731021,1715287840937,-1401.0,0.0003,2]
[326731022,1715287840948,-832.13626007,0.0003,120]
[326731023,1715287840958,-10000.0,0.0003,15]
[326731024,1715287840968,-163.37283134,0.0003,2]
[326731025,1715287840978,-158.24940079,0.0003,4]
[326731026,1715287840988,-1826.17808686,0.0003,2]
[326731027,1715287840999,-13999.9998462,0.0003,4]
[326731028,1715287841010,-13999.9998462,0.0003,4]
[326731029,1715287841020,-207.0,0.0003,2]
[326731030,1715287841034,-2286600.6634322,0.00030004,30]
[326731031,1715287841043,-37744.52907806,0.00030004,7]
[326731032,1715287841053,-999.08,0.000301,2]
[326731033,1715287841062,-603.01,0.000302,2]
[326731034,1715287841073,-393.18,0.000302,2]
[326731035,1715287841083,-719.39,0.000303,2]
[326731036,1715287841093,-150.0,0.000309,2]
[326731037,1715287841103,-151.48,0.0003097,2]
[326731038,1715287841116,-321737.10382025,0.0003098,2]
[326731041,1715287841678,-76124.76982872,0.0003098,2]
[326731042,1715287841689,-320.06906218,0.00031,4]
[326731043,1715287841699,-12055.24643363,0.0003121,2]
[326731044,1715287841710,-151.0,0.00031448,2]
[326731045,1715287841720,-719.39,0.000315,2]
[326731046,1715287841730,-1009.9,0.00031745,2]
[326731047,1715287841740,-151.0,0.00031933,2]
[326731048,1715287841750,-150.0,0.00031963,2]
[326731049,1715287841760,-152.0,0.00031996,2]
[326731050,1715287841770,-333.01810814,0.00032,4]
[326731051,1715287841780,-9543.26760001,0.00032,7]
[326731052,1715287841790,-169.53,0.00032144,120]
[326731053,1715287841800,-17570.3133779,0.00032236,2]
[326731054,1715287841810,-3753.15464097,0.00032398,4]
[326731055,1715287841820,-393.18,0.000324,2]
[326731056,1715287841830,-287.57047565,0.00032424,2]
[326731057,1715287841840,-2373.52563298,0.0003243,30]
[326731058,1715287841851,-153.72836646,0.00032492,7]
[326731059,1715287841861,-413.3396928,0.000325,4]
[326731060,1715287841871,-603.01,0.000325,2]
[326731061,1715287841881,-153.0,0.00032544,2]
[326731062,1715287841890,-168.01255569,0.0003259,2]
[326731063,1715287841900,-719.39,0.000327,2]
[326731064,1715287841909,-3538.60960637,0.000328,2]
[326731066,1715287841919,-151.0,0.00032803,2]
[326731068,1715287841928,-1452.56579756,0.0003281,2]
[326731070,1715287841938,-56274.78,0.00032877,2]
[326731072,1715287841948,-322.22,0.00032877,2]
[326731074,1715287841958,-152.53780723,0.00032877,7]
[326731076,1715287841967,-156.91117699,0.00032882,7]
[326731078,1715287841977,-323953.22071689,0.000329,30]
[326731080,1715287841986,-265.61980913,0.000329,30]
[326731082,1715287841996,-756.0,0.000329,2]
[326731084,1715287842006,-157.99778476,0.00032913,7]
[326731087,1715287842016,-15066.52363358,0.00033,2]
[326731088,1715287842026,-157.71922568,0.00033,120]
[326731091,1715287842042,-975.14648933,0.00033,2]
[326731093,1715287842052,-516.63344706,0.00033,120]
[326731095,1715287842062,-1677.049429,0.00033,2]
[326731096,1715287842072,-1014.71959,0.00033,2]
[326731097,1715287842083,-207.0,0.00033,2]
[326731098,1715287842094,-157.99778476,0.0003307,7]
[326731099,1715287842104,-154.0,0.00033092,2]
[326731100,1715287842118,-719.39,0.000331,2]
[326731101,1715287842337,-393.18,0.000331,2]
[326731102,1715287842361,-152.67353958,0.0003312,7]
[326731103,1715287842371,-302.0,0.00033354,4]
[326731104,1715287842380,-1137.59627636,0.00033391,2]
[326731105,1715287842389,-1140.03701329,0.000335,2]
[326731106,1715287842398,-307.2,0.000335,2]
[326731107,1715287842407,-307.2,0.000335,2]
[326731108,1715287842417,-307.2,0.000335,2]
[326731109,1715287842426,-307.2,0.000335,2]
[326731110,1715287842436,-307.2,0.000335,2]
[326731111,1715287842445,-307.2,0.000335,2]
[326731112,1715287842455,-307.2,0.000335,2]
[326731113,1715287842464,-307.2,0.000335,2]
[326731114,1715287842474,-307.2,0.000335,2]
[326731115,1715287842483,-307.2,0.000335,2]
[326731116,1715287842492,-307.2,0.000335,2]
[326731117,1715287842502,-307.2,0.000335,2]
[326731118,1715287842511,-307.2,0.000335,2]
[326731119,1715287842520,-307.2,0.000335,2]
[326731120,1715287842530,-307.2,0.000335,2]
[326731121,1715287842539,-307.2,0.000335,2]
[326731122,1715287842548,-307.2,0.000335,2]
[326731123,1715287842558,-307.2,0.000335,2]
[326731124,1715287842567,-307.2,0.000335,2]
[326731125,1715287842577,-307.2,0.000335,2]
[326731126,1715287842586,-393.18,0.000335,2]
[326731127,1715287842596,-153.72836646,0.00033611,7]
[326731128,1715287842605,-161.0,0.0003364,2]
[326731129,1715287842618,-604.0,0.00033915,7]
[326731130,1715287842627,-184.01566709,0.00033935,7]
[326731131,1715287842637,-7799.23448418,0.00033987,2]
[326731132,1715287842647,-570.91094131,0.00034,4]
[326731133,1715287842656,-603.01,0.00034,2]
[326731134,1715287842666,-204.2,0.00034084,120]
[326731135,1715287842675,-157.6555605,0.00034242,7]
[326731136,1715287842685,-150.0,0.00034548,10]
[326731137,1715287842695,-1208.0,0.00034773,30]
[326731138,1715287842706,-603.01,0.000348,2]
[326731139,1715287842715,-591.186469,0.000348,2]
[326731140,1715287842725,-886.779704,0.000348,2]
[326731141,1715287842735,-3605.187307,0.000348,2]
[326731142,1715287842745,-5407.780961,0.000348,2]
[326731143,1715287842756,-153.72836646,0.00034804,7]
[326731144,1715287842769,-154.6529785,0.00034828,7]
[326731145,1715287842779,-1200.0,0.000349,12]
[326731146,1715287842790,-3753.15464097,0.00035027,7]
[326731147,1715287842800,-184.01566709,0.00035077,7]
[326731148,1715287842809,-153.72836646,0.00035085,7]
[326731149,1715287842819,-151.48,0.00035271,2]
[326731150,1715287842830,-185167.15020337,0.00035281,15]
[326731156,1715287843535,-939.45325065,0.00035281,15]
[326731157,1715287843548,-424.88308538,0.00035281,15]
[326731158,1715287843560,-353.33450113,0.00035281,15]
[326731159,1715287843571,-4391.54861006,0.00035281,15]
[326731160,1715287843749,-1804312.81791618,0.00035281,15]
[326731161,1715287843759,-80047.451932,0.00035281,7]
[326731162,1715287843769,-17570.3133779,0.00035459,2]
[326731163,1715287843780,-155.0495687,0.00035599,7]
[326731164,1715287843789,-1182.372939,0.000356,2]
[326731165,1715287843801,-1477.966174,0.000356,2]
[326731166,1715287843811,-2069.152643,0.000356,2]
[326731167,1715287843820,-7210.374615,0.000356,2]
[326731168,1715287843832,-9012.968269,0.000356,2]
[326731169,1715287843842,-12618.155576,0.000356,2]
[326731170,1715287843852,-307.2,0.000356,3]
[326731171,1715287843861,-307.2,0.000356,3]
[326731172,1715287843871,-307.2,0.000356,3]
[326731173,1715287843881,-307.2,0.000356,3]
[326731174,1715287843892,-307.2,0.000356,3]
[326731175,1715287843902,-307.2,0.000356,3]
[326731176,1715287843913,-307.2,0.000356,3]
[326731177,1715287843923,-307.2,0.000356,3]
[326731178,1715287843935,-307.2,0.000356,3]
[326731179,1715287843947,-307.2,0.000356,3]
[326731180,1715287843957,-307.2,0.000356,3]
[326731181,1715287843967,-307.2,0.000356,3]
[326731182,1715287843977,-307.2,0.000356,3]
[326731183,1715287843987,-307.2,0.000356,3]
[326731184,1715287843997,-307.2,0.000356,3]
[326731185,1715287844007,-307.2,0.000356,3]
[326731186,1715287844017,-307.2,0.000356,3]
[326731187,1715287844027,-307.2,0.000356,3]
[326731188,1715287844040,-307.2,0.000356,3]
[326731189,1715287844050,-307.2,0.000356,3]
[326731190,1715287844059,-393.18,0.000356,2]
[326731191,1715287844070,-200.0,0.00035616,2]
[326731192,1715287844079,-1151.17382053,0.00035861,2]
[326731193,1715287844089,-5150.65811634,0.00035861,2]
[326731194,1715287844098,-174.42603969,0.00035861,2]
[326731195,1715287844109,-954.66016833,0.00036098,4]
[326731196,1715287844119,-500.0,0.00036102,10]
[326731197,1715287844129,-500.0,0.00036102,10]
[326731198,1715287844139,-500.0,0.00036102,10]
[326731199,1715287844148,-603.01,0.000362,2]
[326731201,1715287844158,-719.39,0.000362,2]
[326731203,1715287844168,-150.0,0.0003653,2]
[326731205,1715287844177,-500.0,0.0003665,10]
[326731207,1715287844187,-393.18,0.000367,7]
[326731210,1715287844196,-719.39,0.000368,2]
[326731213,1715287844207,-1000.0,0.00037,2]
[326731216,1715287844216,-287.57047565,0.00037162,2]
[326731218,1715287844226,-500.0,0.00037198,10]
[326731219,1715287844236,-500.0,0.00037198,10]
[326731220,1715287844246,-416.0,0.00037198,13]
[326731221,1715287844255,-10000.0,0.00037217,2]
[326731222,1715287844265,-200.0,0.000373,2]
[326731223,1715287844276,-1137.59627636,0.0003733,2]
[326731224,1715287844287,-153.72836646,0.00037368,7]
[326731225,1715287844297,-719.39,0.000376,2]
[326731226,1715287844307,-307.2,0.000376,3]
[326731227,1715287844317,-307.2,0.000376,3]
[326731228,1715287844327,-307.2,0.000376,3]
[326731229,1715287844337,-307.2,0.000376,3]
[326731230,1715287844347,-307.2,0.000376,3]
[326731231,1715287844357,-307.2,0.000376,3]
[326731232,1715287844368,-307.2,0.000376,3]
[326731233,1715287844378,-307.2,0.000376,3]
[326731234,1715287844389,-307.2,0.000376,3]
[326731235,1715287844399,-307.2,0.000376,3]
[326731236,1715287844408,-307.2,0.000376,3]
[326731237,1715287844418,-307.2,0.000376,3]
[326731238,1715287844428,-307.2,0.000376,3]
[326731239,1715287844438,-307.2,0.000376,3]
[326731240,1715287844448,-307.2,0.000376,3]
[326731241,1715287844525,-307.2,0.000376,3]
[326731242,1715287844536,-307.2,0.000376,3]
[326731243,1715287844546,-307.2,0.000376,3]
[326731244,1715287844557,-307.2,0.000376,3]
[326731245,1715287844567,-307.2,0.000376,3]
[326731246,1715287844576,-3753.15464097,0.00037656,10]
[326731247,1715287844586,-157.99778476,0.00037735,7]
[326731248,1715287844596,-500.0,0.00037746,10]
[326731249,1715287844606,-151.48,0.00037797,2]
[326731250,1715287844617,-151.48,0.00037797,2]
[326731251,1715287844627,-1227.0,0.00037807,2]
[326731252,1715287844637,-273.975,0.00037807,2]
[326731253,1715287844646,-37793.0,0.00037807,2]
[326731254,1715287844656,-200.0,0.000379,13]
[326731255,1715287844667,-1028.0,0.00037905,5]
[326731256,1715287844677,-200.64558336,0.00037998,4]
[326731257,1715287844686,-2325.27290029,0.00037998,4]
[326731258,1715287844696,-514.99054699,0.00037998,4]
[326731259,1715287844706,-1052.05964256,0.00037998,4]
[326731260,1715287844716,-711.54040194,0.00037998,15]
[326731261,1715287844725,-782.5278252,0.00037998,2]
[326731262,1715287844735,-262.68990001,0.00037998,4]
[326731263,1715287844745,-2218.69268549,0.00037998,2]
[326731264,1715287844755,-496.34923762,0.00037998,30]
[326731265,1715287844765,-14448.19,0.00037998,5]
[326731266,1715287844776,-5764.0576468,0.00037999,4]
[326731267,1715287844786,-8358.14832076,0.00037999,4]
[326731268,1715287844796,-50000.0,0.00038,28]
[326731269,1715287844806,-1607.92618494,0.00038,5]
[326731270,1715287844816,-1605.0311373,0.00038,4]
[326731271,1715287844825,-9100.0,0.00038,2]
[326731272,1715287844836,-155.0,0.00038,2]
[326731273,1715287844846,-200.0,0.00038,2]
[326731274,1715287844856,-1014.71958,0.00038,2]
[326731275,1715287844867,-603.01,0.000381,2]
[326731276,1715287844876,-157.99778477,0.00038185,7]
[326731277,1715287844886,-500.0,0.00038294,10]
[326731278,1715287844895,-500.0,0.00038294,10]
[326731279,1715287844905,-1000.0,0.00038356,30]
[326731280,1715287844914,-160.33257566,0.00038438,30]
[326731281,1715287844924,-160.33257566,0.00038658,30]
[326731282,1715287844934,-17570.3133779,0.00038681,2]
[326731283,1715287844944,-2835.16219521,0.0003873,2]
[326731284,1715287844953,-168.71,0.00038813,2]
[326731285,1715287844964,-500.0,0.00038842,10]
[326731286,1715287844974,-160.33257566,0.00038849,30]
[326731287,1715287844983,-883.16357776,0.000389,30]
[326731288,1715287844993,-50000.0,0.00039,29]
[326731289,1715287845003,-4466.41872974,0.00039,2]
[326731290,1715287845012,-160.33257566,0.00039014,30]
[326731291,1715287845022,-160.33257566,0.00039068,30]
[326731292,1715287845035,-184.92126703,0.00039148,2]
[326731293,1715287845045,-184.92126703,0.00039148,2]
[326731294,1715287845054,-184.92126703,0.00039148,2]
[326731295,1715287845064,-150.0,0.0003915,7]
[326731296,1715287845074,-150.0,0.0003915,7]
[326731297,1715287845085,-150.0,0.0003915,7]
[326731298,1715287845095,-150.0,0.0003915,7]
[326731299,1715287845105,-150.0,0.0003915,7]
[326731300,1715287845116,-413.43,0.00039205,2]
[326731301,1715287845126,-160.33257566,0.00039288,30]
[326731302,1715287845135,-500.0,0.0003939,10]
[326731303,1715287845144,-160.33257566,0.00039479,30]
[326731304,1715287845153,-72897.21802206,0.000395,60]
[326731305,1715287845162,-160.33257566,0.00039589,30]
[326731306,1715287845171,-393.18,0.000396,7]
[326731307,1715287845181,-151.48,0.0003969,2]
[326731308,1715287845190,-160.33257566,0.00039699,30]
[326731309,1715287845200,-307.2,0.000397,3]
[326731310,1715287845210,-307.2,0.000397,3]
[326731311,1715287845219,-307.2,0.000397,3]
[326731312,1715287845229,-307.2,0.000397,3]
[326731313,1715287845239,-307.2,0.000397,3]
[326731314,1715287845249,-307.2,0.000397,3]
[326731315,1715287845259,-307.2,0.000397,3]
[326731316,1715287845269,-307.2,0.000397,3]
[326731317,1715287845279,-307.2,0.000397,3]
[326731318,1715287845289,-307.2,0.000397,3]
[326731319,1715287845299,-307.2,0.000397,3]
[326731320,1715287845309,-307.2,0.000397,3]
[326731321,1715287845318,-307.2,0.000397,3]
[326731322,1715287845328,-307.2,0.000397,3]
[326731323,1715287845337,-307.2,0.000397,3]
[326731324,1715287845347,-307.2,0.000397,3]
[326731325,1715287845356,-307.2,0.000397,3]
[326731326,1715287845367,-307.2,0.000397,3]
[326731327,1715287845377,-307.2,0.000397,3]
[326731328,1715287845387,-307.2,0.000397,3]
[326731329,1715287845397,-591.13574367,0.0003984,10]
[326731330,1715287845408,-160.33257566,0.0003989,30]
[326731331,1715287845418,-1034.0,0.000399,5]
[326731332,1715287845427,-5002.38823,0.000399,30]
[326731333,1715287845438,-500.0,0.00039938,10]
[326731334,1715287845448,-156.09733477,0.00039958,7]
[326731335,1715287845458,-11205.30902875,0.0003998,30]
[326731336,1715287845468,-1000.0,0.00039999,2]
[326731337,1715287845478,-1000.0,0.00039999,2]
[326731338,1715287845488,-1000.0,0.00039999,2]
[326731339,1715287845498,-1000.0,0.00039999,2]
[326731340,1715287845509,-1000.0,0.00039999,2]
[326731341,1715287845519,-396.79345715,0.00039999,2]
[326731342,1715287845529,-50000.0,0.0004,20]
[326731343,1715287845539,-50000.0,0.0004,30]
[326731344,1715287845548,-2258.09716296,0.0004,4]
[326731345,1715287845558,-27725.70616143,0.0004,4]
[326731346,1715287845568,-155.0,0.0004,4]
[326731347,1715287845578,-241.83043562,0.0004,2]
[326731348,1715287845588,-698.31826467,0.0004,4]
[326731349,1715287845598,-2860.97656903,0.0004,20]
[326731350,1715287845608,-2110.0,0.0004,15]
[326731351,1715287845619,-608.0,0.0004,30]
[326731352,1715287845629,-4448.55176745,0.0004,4]
[326731353,1715287845640,-350.0,0.0004,2]
[326731354,1715287845652,-2177.81969131,0.0004,2]
[326731355,1715287845663,-21913.88082053,0.0004,120]
[326731356,1715287845673,-1186.64594374,0.0004,10]
[326731357,1715287845684,-15163.30839198,0.0004,7]
[326731358,1715287845695,-55757.82099999,0.0004,14]
[326731359,1715287845706,-2590730.10086985,0.0004,14]
[326731360,1715287845721,-4787.20130225,0.0004,14]
[326731361,1715287845735,-50393.4796669,0.0004,14]
[326731362,1715287845748,-7243.60532,0.0004,14]
[326731363,1715287845790,-1782.53770001,0.0004,14]
[326731364,1715287846318,-1882.4,0.00027397,10]
[326731365,1715287846328,-2263.97818187,0.00029904,2]
[326731366,1715287846339,-3274.25613279,0.00035861,2]
[326731367,1715287846348,-11423.03990407,0.0004,14]
[326731369,1715287847742,-298.76282549,0.00029904,2]
[326731370,1715287847752,-792.78231533,0.0004,14]
[326731371,1715287847991,-640.0,0.0004,14]
[326731372,1715287854540,503.96680959,0.00011305,2]
[326731376,1715288007621,190.12215853,0.00011305,2]
[326731377,1715288007647,349176.64781865,0.00011305,2]
[326731379,1715288088586,409.16208673,0.00011305,2]
[326731411,1715289032928,-200.69504957,0.00016953,2]